fUST/lending_fUST_20251231
["ID","MTS","AMOUNT","RATE_DAILY","PERIOD"]
[400206118,1767195066712,-5884.83135051,0.00032327,2]
[400206119,1767195066722,-500.0,0.0003236,7]
[400206120,1767195066731,-1218.46508754,0.00032402,7]
[400206121,1767195066740,-150.0,0.000325,120]
[400206122,1767195066749,-1397.54735956,0.00032535,2]
[400206123,1767195066759,-171.8,0.000326,2]
[400206124,1767195066769,-956.2,0.00032602,33]
[400206125,1767195066779,-5000.0,0.00032661,2]
[400206126,1767195066788,-160.0,0.00032706,12]
[400206127,1767195066798,-1162.54265372,0.00032745,2]
[400206128,1767195066808,-200.0,0.0003287,120]
[400206129,1767195066818,-365.46780663,0.00032876,2]
[400206130,1767195066828,-500.0,0.00032876,2]
[400206131,1767195066838,-500.0,0.00032876,2]
[400206132,1767195066847,-500.0,0.00032876,2]
[400206133,1767195066857,-500.0,0.00032876,2]
[400206134,1767195066867,-1625.81725498,0.00032876,2]
[400206135,1767195066876,-500.0,0.00032876,2]
[400206136,1767195066885,-381.81201472,0.00032876,2]
[400206137,1767195066895,-500.0,0.00032876,2]
[400206138,1767195066905,-1625.81725498,0.00032876,2]
[400206139,1767195066914,-500.0,0.00032876,2]
[400206140,1767195066924,-500.0,0.00032876,2]
[400206141,1767195066933,-500.0,0.00032876,2]
[400206142,1767195066943,-500.0,0.00032876,2]
[400206143,1767195066953,-1625.81725498,0.00032876,2]
[400206144,1767195066965,-1625.81725498,0.00032876,2]
[400206145,1767195066974,-500.0,0.00032876,2]
[400206146,1767195066984,-500.0,0.00032876,2]
[400206147,1767195066993,-1625.81725498,0.00032876,2]
[400206148,1767195067004,-500.0,0.00032876,2]
[400206149,1767195067013,-1625.81725498,0.00032876,2]
[400206150,1767195067024,-500.0,0.00032876,2]
[400206151,1767195067034,-1625.81725498,0.00032876,2]
[400206152,1767195067043,-1625.81725498,0.00032876,2]
[400206153,1767195067053,-500.0,0.00032876,2]
[400206154,1767195067063,-500.0,0.00032876,2]
[400206155,1767195067072,-500.0,0.00032876,2]
[400206156,1767195067082,-1625.81725498,0.00032876,2]
[400206157,1767195067091,-500.0,0.00032876,2]
[400206158,1767195067101,-1625.81725498,0.00032876,2]
[400206159,1767195067111,-1625.81725498,0.00032876,2]
[400206160,1767195067120,-500.0,0.00032876,2]
[400206161,1767195067130,-1625.81725498,0.00032876,2]
[400206162,1767195067140,-500.0,0.00032876,2]
[400206163,1767195067149,-500.0,0.00032876,2]
[400206164,1767195067159,-500.0,0.00032876,2]
[400206165,1767195067169,-1625.81725498,0.00032876,2]
[400206166,1767195067178,-500.0,0.00032876,2]
[400206167,1767195067188,-1625.81725498,0.00032876,2]
[400206168,1767195067197,-1625.81725498,0.00032876,2]
[400206169,1767195067208,-1625.81725498,0.00032876,2]
[400206170,1767195067218,-1625.81725498,0.00032876,2]
[400206171,1767195067228,-1625.81725498,0.00032876,2]
[400206172,1767195067237,-1625.81725498,0.00032876,2]
[400206173,1767195067247,-1625.81725498,0.00032876,2]
[400206174,1767195067257,-1625.81725498,0.00032876,2]
[400206175,1767195067266,-1625.81725498,0.00032876,2]
[400206176,1767195067276,-1625.81725498,0.00032876,2]
[400206177,1767195067286,-1625.81725498,0.00032876,2]
[400206178,1767195067296,-1625.81725498,0.00032876,2]
[400206179,1767195067305,-1625.81725498,0.00032876,2]
[400206180,1767195067315,-1625.81725498,0.00032876,2]
[400206181,1767195067322,-1625.81725498,0.00032876,2]
[400206182,1767195067329,-1625.81725498,0.00032876,2]
[400206183,1767195067337,-1625.81725498,0.00032876,2]
[400206184,1767195067344,-1625.81725498,0.00032876,2]
[400206185,1767195067352,-1625.81725498,0.00032876,2]
[400206186,1767195067359,-1625.81725498,0.00032876,2]
[400206187,1767195067367,-1625.81725498,0.00032876,2]
[400206188,1767195067375,-1625.81725498,0.00032876,2]
[400206189,1767195067383,-1625.81725498,0.00032876,2]
[400206190,1767195067392,-1625.81725498,0.00032876,2]
[400206191,1767195067402,-500.0,0.00032876,2]
[400206192,1767195067413,-550.0,0.00032876,2]
[400206193,1767195067424,-1612.26877785,0.00032876,2]
[400206194,1767195067433,-1612.26877785,0.00032876,2]
[400206195,1767195067444,-1612.26877785,0.00032876,2]
[400206196,1767195067453,-1612.26877785,0.00032876,2]
[400206197,1767195067463,-1612.26877785,0.00032876,2]
[400206198,1767195067472,-1612.26877785,0.00032876,2]
[400206199,1767195067482,-1612.26877785,0.00032876,2]
[400206200,1767195067491,-1612.26877785,0.00032876,2]
[400206201,1767195067501,-1612.26877785,0.00032876,2]
[400206202,1767195067511,-1612.26877785,0.00032876,2]
[400206203,1767195067520,-1612.26877785,0.00032876,2]
[400206204,1767195067530,-1612.26877785,0.00032876,2]
[400206205,1767195067540,-1612.26877785,0.00032876,2]
[400206206,1767195067549,-1612.26877785,0.00032876,2]
[400206207,1767195067559,-1612.26877785,0.00032876,2]
[400206208,1767195067569,-1612.26877785,0.00032876,2]
[400206209,1767195067578,-1612.26877785,0.00032876,2]
[400206210,1767195067588,-1612.26877785,0.00032876,2]
[400206211,1767195067599,-1612.26877785,0.00032876,2]
[400206212,1767195067608,-1612.26877785,0.00032876,2]
[400206213,1767195067618,-1612.26877785,0.00032876,2]
[400206214,1767195067627,-1612.26877785,0.00032876,2]
[400206215,1767195067638,-1612.26877785,0.00032876,2]
[400206216,1767195067647,-1612.26877785,0.00032876,2]
[400206217,1767195067658,-1083.44461872,0.00032876,2]
[400206218,1767195067667,-1083.44461872,0.00032876,2]
[400206219,1767195067676,-1083.44461872,0.00032876,2]
[400206220,1767195067686,-1083.44461872,0.00032876,2]
[400206221,1767195067695,-1083.44461872,0.00032876,2]
[400206222,1767195067704,-1083.44461872,0.00032876,2]
[400206223,1767195067714,-1083.44461872,0.00032876,2]
[400206224,1767195067723,-1083.44461872,0.00032876,2]
[400206225,1767195067733,-1083.44461872,0.00032876,2]
[400206226,1767195067742,-1083.44461872,0.00032876,2]
[400206227,1767195067752,-1083.44461872,0.00032876,2]
[400206228,1767195067761,-1083.44461872,0.00032876,2]
[400206229,1767195067770,-1083.44461872,0.00032876,2]
[400206230,1767195067780,-1083.44461872,0.00032876,2]
[400206231,1767195067789,-1083.44461872,0.00032876,2]
[400206232,1767195067799,-773.88901337,0.00032876,2]
[400206233,1767195067808,-773.88901337,0.00032876,2]
[400206234,1767195067818,-773.88901337,0.00032876,2]
[400206235,1767195067828,-773.88901337,0.00032876,2]
[400206236,1767195067838,-773.88901337,0.00032876,2]
[400206237,1767195067847,-773.88901337,0.00032876,2]
[400206238,1767195067856,-773.88901337,0.00032876,2]
[400206239,1767195067865,-454.49258692,0.00032876,2]
[400206240,1767195067874,-463.10576097,0.00032876,2]
[400206241,1767195067884,-238.50316137,0.00032876,2]
[400206242,1767195067893,-531.82781768,0.00032876,2]
[400206243,1767195067902,-285.0,0.00032876,2]
[400206244,1767195067911,-427.39913778,0.00032876,2]
[400206245,1767195067921,-516.77672992,0.00032877,8]
[400206246,1767195067930,-781.52,0.00032877,10]
[400206247,1767195067940,-651.27,0.00032877,10]
[400206248,1767195067954,-542.72,0.00032877,10]
[400206249,1767195067966,-500.0,0.00032877,5]
[400206250,1767195067975,-150.0,0.00032877,5]
[400206251,1767195067984,-183.82771828,0.000329,120]
[400206252,1767195067993,-182.37879673,0.000329,120]
[400206253,1767195068003,-198.32485528,0.000329,120]
[400206254,1767195068013,-185.09337354,0.000329,120]
[400206255,1767195068022,-183.42010434,0.000329,120]
[400206256,1767195068031,-178.8674121,0.000329,120]
[400206257,1767195068040,-161.01318651,0.000329,120]
[400206258,1767195068050,-301.14881915,0.000329,120]
[400206259,1767195068059,-1430.86618739,0.000329,120]
[400206260,1767195068069,-726.0,0.00032902,11]
[400206261,1767195068078,-146480.1687316,0.00033,20]
[400206262,1767195068089,-12931.52053187,0.00033,120]
[400206263,1767195068098,-26080.00693041,0.00033,120]
[400206264,1767195068107,-173.85,0.00033,7]
[400206265,1767195068117,-726.0,0.00033093,11]
[400206266,1767195068126,-294.99950486,0.00033125,30]
[400206267,1767195068135,-956.2,0.0003315,34]
[400206268,1767195068145,-2000.0,0.00033151,120]
[400206269,1767195068154,-1096.554859,0.00033165,2]
[400206270,1767195068163,-160.0,0.00033197,13]
[400206271,1767195068172,-179.95097548,0.000332,117]
[400206272,1767195068182,-179.95097547,0.000332,117]
[400206273,1767195068192,-2863.2521,0.0003322,30]
[400206274,1767195068201,-599.7286954,0.00033294,30]
[400206275,1767195068211,-599.7286954,0.00033294,30]
[400206276,1767195068221,-599.7286954,0.00033294,30]
[400206277,1767195068337,-599.7286954,0.00033294,30]
[400206278,1767195068348,-599.7286954,0.00033294,30]
[400206279,1767195068358,-599.7286954,0.00033294,30]
[400206280,1767195068368,-627.0,0.00033301,2]
[400206281,1767195068377,-1364.0,0.00033301,2]
[400206282,1767195068387,-416.0,0.00033301,2]
[400206283,1767195068397,-416.0,0.00033301,2]
[400206284,1767195068406,-585.65952382,0.00033324,5]
[400206285,1767195068416,-170.5,0.00033368,5]
[400206286,1767195068426,-1004.98248976,0.00033425,5]
[400206287,1767195068437,-2000.0,0.00033425,120]
[400206288,1767195068446,-2000.0,0.00033425,120]
[400206289,1767195068456,-9553.69903552,0.00033468,2]
[400206290,1767195068465,-150.0,0.000335,120]
[400206291,1767195068476,-14716.15451875,0.00033609,2]
[400206292,1767195068485,-160.0,0.00033689,14]
[400206293,1767195068495,-956.2,0.00033698,35]
[400206294,1767195068504,-250.0,0.00033699,5]
[400206295,1767195068513,-2000.0,0.00033699,120]
[400206296,1767195068523,-200.26076,0.000337,120]
[400206297,1767195068532,-182.37879673,0.000339,120]
[400206298,1767195068542,-198.32485528,0.000339,120]
[400206299,1767195068552,-185.09337354,0.000339,120]
[400206300,1767195068562,-178.8674121,0.000339,120]
[400206301,1767195068571,-161.01318651,0.000339,120]
[400206302,1767195068581,-301.14881915,0.000339,120]
[400206303,1767195068591,-1430.86618739,0.000339,120]
[400206304,1767195068601,-2000.0,0.00033973,120]
[400206305,1767195068610,-2000.0,0.00033973,120]
[400206306,1767195068620,-1000.0,0.00033973,120]
[400206307,1767195068629,-200.0,0.00034,120]
[400206308,1767195068639,-158.31477425,0.00034,120]
[400206309,1767195068648,-294.99950486,0.00034114,30]
[400206310,1767195068658,-1199.4573908,0.00034116,30]
[400206311,1767195068668,-599.7286954,0.00034116,30]
[400206312,1767195068677,-599.7286954,0.00034116,30]
[400206313,1767195068687,-599.7286954,0.00034116,30]
[400206314,1767195068697,-599.7286954,0.00034116,30]
[400206315,1767195068706,-599.7286954,0.00034116,30]
[400206316,1767195068716,-160.0,0.00034181,15]
[400206317,1767195068725,-295.735,0.000342,30]
[400206318,1767195068735,-295.73,0.000342,30]
[400206319,1767195068744,-726.0,0.00034213,11]
[400206320,1767195068753,-956.2,0.00034246,36]
[400206321,1767195068762,-2000.0,0.00034247,120]
[400206322,1767195068772,-1000.0,0.00034247,120]
[400206323,1767195068782,-150.0,0.000345,120]
[400206324,1767195068792,-450.50848757,0.00034521,5]
[400206325,1767195068802,-2000.0,0.00034521,120]
[400206326,1767195068812,-2000.0,0.00034521,120]
[400206327,1767195068821,-1000.0,0.00034521,120]
[400206328,1767195068832,-1474.19,0.00034615,60]
[400206329,1767195068842,-160.0,0.00034672,16]
[400206330,1767195068851,-1474.19,0.00034715,60]
[400206331,1767195068861,-1232.76335092,0.00034745,120]
[400206332,1767195068871,-151.19,0.00034785,60]
[400206333,1767195068881,-956.2,0.00034794,37]
[400206334,1767195068890,-2000.0,0.00034795,120]
[400206335,1767195068900,-1000.0,0.00034795,120]
[400206336,1767195068909,-1474.19,0.00034815,60]
[400206337,1767195068919,-177.92,0.00034856,30]
[400206338,1767195068929,-151.19,0.00034885,60]
[400206339,1767195068938,-65677.11639519,0.00034888,10]
[400206340,1767195068947,-182.37879673,0.000349,120]
[400206341,1767195068957,-2000.0,0.000349,120]
[400206342,1767195068970,-161.01318651,0.000349,120]
[400206343,1767195068980,-301.14881915,0.000349,120]
[400206344,1767195068990,-1430.86618739,0.000349,120]
[400206345,1767195069001,-1474.19,0.00034915,60]
[400206346,1767195069011,-5884.83135051,0.00034924,2]
[400206347,1767195069021,-169.32246815,0.00034932,30]
[400206348,1767195069032,-1498.0,0.00034979,60]
[400206349,1767195069042,-151.19,0.00034985,60]
[400206350,1767195069051,-443.0,0.00035,10]
[400206351,1767195069061,-60413.6668245,0.00035,120]
[400206352,1767195069071,-14143.0,0.00035,2]
[400206353,1767195069080,-150.0,0.00035,69]
[400206354,1767195069089,-200.0,0.00035,120]
[400206355,1767195069099,-804.56029953,0.00035,30]
[400206356,1767195069109,-3000.0,0.00035,15]
[400206357,1767195069118,-726.0,0.00035012,11]
[400206358,1767195069128,-1474.19,0.00035015,60]
[400206359,1767195069137,-2000.0,0.00035068,120]
[400206360,1767195069146,-2000.0,0.00035068,120]
[400206361,1767195069155,-1000.0,0.00035068,120]
[400206362,1767195069165,-151.19,0.00035085,60]
[400206363,1767195069174,-294.89950486,0.00035103,30]
[400206364,1767195069183,-1474.19,0.00035115,60]
[400206365,1767195069193,-160.0,0.00035164,17]
[400206366,1767195069202,-151.21868735,0.00035185,60]
[400206367,1767195069211,-1111.97,0.000352,120]
[400206368,1767195069221,-1474.19,0.00035215,60]
[400206369,1767195069230,-170.5,0.00035249,6]
[400206370,1767195069239,-169.32246815,0.00035288,30]
[400206371,1767195069248,-726.0,0.00035305,11]
[400206372,1767195069257,-1474.19,0.00035315,60]
[400206373,1767195069267,-2000.0,0.00035342,120]
[400206374,1767195069276,-1000.0,0.00035342,120]
[400206375,1767195069285,-956.2,0.00035342,38]
[400206376,1767195069293,-1474.19,0.00035415,60]
[400206377,1767195069302,-150.0,0.000355,120]
[400206378,1767195069312,-1474.19,0.00035515,60]
[400206379,1767195069321,-726.0,0.00035562,11]
[400206380,1767195069331,-1474.19,0.00035615,60]
[400206381,1767195069340,-2000.0,0.00035616,120]
[400206382,1767195069350,-2000.0,0.00035616,120]
[400206383,1767195069359,-1000.0,0.00035616,120]
[400206384,1767195069368,-151.0,0.00035616,31]
[400206385,1767195069377,-154.738358,0.00035616,31]
[400206386,1767195069386,-160.0,0.00035655,18]
[400206387,1767195069396,-169.32246815,0.00035671,30]
[400206388,1767195069406,-1474.19,0.00035715,60]
[400206389,1767195069415,-200.0,0.00035783,120]
[400206390,1767195069424,-1474.19,0.00035815,60]
[400206391,1767195069434,-200.0,0.00035855,120]
[400206392,1767195069443,-2000.0,0.0003589,120]
[400206393,1767195069452,-956.2,0.0003589,39]
[400206394,1767195069461,-2000.0,0.000359,120]
[400206395,1767195069471,-1430.86618739,0.000359,120]
[400206396,1767195069480,-3848.61892317,0.000359,30]
[400206397,1767195069616,-2461.95145914,0.000359,30]
[400206398,1767195069628,-5108.56121964,0.000359,30]
[400206399,1767195069640,-23057.99877425,0.000359,30]
[400206400,1767195069652,-1117.6828599,0.000359,30]
[400206401,1767195069664,-412.0,0.000359,30]
[400206402,1767195069681,-151.0,0.00027397,7]
[400206403,1767195069692,-5854.28168253,0.000359,30]
[400206404,1767195070614,-3e-08,0.00016673,2]
[400206405,1767195070689,-2000.0,0.00010646,2]
[400206406,1767195070701,-55189.43944567,0.00010646,2]
[400206407,1767195070712,-43387.98838535,0.00010646,2]
[400206408,1767195071343,5000.0,0.00011,3]
[400206409,1767195076644,5000.0,0.00011,3]
[400206423,1767195099467,5000.0,0.00011,3]
[400206424,1767195103605,440.207,0.00010433,2]
[400206425,1767195122722,300.0,0.00010645,2]
[400206426,1767195123137,5000.0,0.00010646,2]
[400206430,1767195134513,-723.79641316,0.00010646,2]
[400206431,1767195136443,-314.16268127,0.00010646,2]
[400206438,1767195143236,-571.07787395,0.00010646,2]
[400206444,1767195147469,4700.01,0.00010646,2]
[400206445,1767195147553,299.99,0.00010646,2]
[400206446,1767195150694,-180.623687,0.00010646,2]
[400206447,1767195152721,-229.9173134,0.00010646,2]
[400206448,1767195158427,-542.71139872,0.00010646,2]
[400206449,1767195159871,-290.26193806,0.00010646,2]
[400206451,1767195167140,-235.49497773,0.00010646,2]
[400206452,1767195168719,-202.6124129,0.00010646,2]
[400206453,1767195170511,3317.15853049,0.00010646,2]
[400206454,1767195173425,-479.8497996,0.00010646,2]
[400206456,1767195175446,-397.16592788,0.00010646,2]
[400206459,1767195183004,283.0,0.00010645,2]
[400206460,1767195183773,-190.34432457,0.00010646,2]
[400206461,1767195185896,-261.89371822,0.00010646,2]
[400206464,1767195190514,-390.99513034,0.00010646,2]
[400206466,1767195193159,-244.29640188,0.00010646,2]
[400206467,1767195193627,1777.87534493,0.00010646,2]
[400206469,1767195197716,-293.30857454,0.00010646,2]
[400206470,1767195200048,-231.11261635,0.00010646,2]
[400206471,1767195205573,-277.04934668,0.00010646,2]
[400206473,1767195215078,-300.0,0.00010646,2]
[400206474,1767195216769,244.29640188,0.00010646,2]
[400206475,1767195217582,-215.18080952,0.00010646,2]
[400206476,1767195221951,-183.34865291,0.00010646,2]
[400206477,1767195224093,-339.19355815,0.00010646,2]
[400206482,1767195229970,-452.05913549,0.00010646,2]
[400206483,1767195233195,339.19355815,0.00010646,2]
[400206484,1767195237842,-194.86222408,0.00010646,2]
[400206497,1767195240973,-608.90676499,0.00010646,2]
[400206498,1767195242727,300.0,0.00010645,2]
[400206499,1767195246211,-271.47560157,0.00010646,2]
[400206500,1767195247753,-340.29649112,0.00010646,2]
[400206501,1767195256924,1867.60021725,0.00010646,2]
[400206513,1767195308128,1200.0,0.00010645,2]
[400206515,1767195327297,269.91084922,0.00010546,2]
[400206520,1767195369362,100.98509808,0.00010645,2]
[400206521,1767195369432,399.01490192,0.00010645,2]
[400206522,1767195369507,346.59223998,0.00010645,2]
[400206523,1767195369588,500.0,0.00010645,2]
[400206525,1767195369678,500.0,0.00010645,2]
[400206526,1767195369759,500.0,0.00010645,2]
[400206527,1767195369845,500.0,0.00010645,2]
[400206528,1767195369926,500.0,0.00010645,2]
[400206529,1767195370016,500.0,0.00010645,2]
[400206530,1767195370614,250.0,0.00010413,2]
[400206532,1767195374971,375.18106712,0.00010645,2]
[400206537,1767195480439,219.46,8.492e-05,2]
[400206538,1767195480811,219.46,8.492e-05,2]
[400206539,1767195481076,219.45,8.492e-05,2]
[400206621,1767195583551,500.0,0.00010645,2]
[400206622,1767195583642,500.0,0.00010645,2]
[400206623,1767195583753,500.0,0.00010645,2]
[400206624,1767195583839,500.0,0.00010645,2]
[400206625,1767195583922,500.0,0.00010645,2]
[400206626,1767195584008,500.0,0.00010645,2]
[400206627,1767195584083,500.0,0.00010645,2]
[400206628,1767195584167,500.0,0.00010645,2]
[400206629,1767195584268,500.0,0.00010645,2]
[400206630,1767195584351,470.85179098,0.00010645,2]
[400206631,1767195584426,29.14820902,0.00010645,2]
[400206632,1767195584499,500.0,0.00010645,2]
[400206633,1767195584574,500.0,0.00010645,2]
[400206634,1767195584649,500.0,0.00010645,2]
[400206635,1767195584722,500.0,0.00010645,2]
[400206636,1767195584796,500.0,0.00010645,2]
[400206637,1767195584869,500.0,0.00010645,2]
[400206638,1767195584943,500.0,0.00010645,2]
[400206639,1767195585018,500.0,0.00010645,2]
[400206640,1767195585092,500.0,0.00010645,2]
[400206641,1767195585163,500.0,0.00010645,2]
[400206642,1767195585232,500.0,0.00010645,2]
[400206643,1767195585306,500.0,0.00010645,2]
[400206644,1767195585382,500.0,0.00010645,2]
[400206645,1767195585459,500.0,0.00010645,2]
[400206646,1767195585530,500.0,0.00010645,2]
[400206647,1767195585605,500.0,0.00010645,2]
[400206648,1767195585682,500.0,0.00010645,2]
[400206649,1767195585762,500.0,0.00010645,2]
[400206650,1767195585839,500.0,0.00010645,2]
[400206651,1767195585921,470.86179098,0.00010645,2]
[400206652,1767195585987,29.13820902,0.00010645,2]
[400206653,1767195586067,500.0,0.00010645,2]
[400206654,1767195586149,500.0,0.00010645,2]
[400206655,1767195586223,500.0,0.00010645,2]
[400206665,1767195601414,300.0,0.00010645,2]
[400206672,1767195624711,500.0,0.00010645,2]
[400206673,1767195624807,500.0,0.00010645,2]
[400206674,1767195624905,500.0,0.00010645,2]
[400206675,1767195625008,500.0,0.00010645,2]
[400206676,1767195625129,500.0,0.00010645,2]
[400206677,1767195625243,500.0,0.00010645,2]
[400206678,1767195625331,500.0,0.00010645,2]
[400206679,1767195625428,500.0,0.00010645,2]
[400206680,1767195625514,500.0,0.00010645,2]
[400206681,1767195625610,500.0,0.00010645,2]
[400206682,1767195625699,522.88246556,0.00010645,2]
[400206683,1767195625789,500.0,0.00010645,2]
[400206684,1767195625883,500.0,0.00010645,2]
[400206685,1767195625976,500.0,0.00010645,2]
[400206686,1767195626087,500.0,0.00010645,2]
[400206687,1767195626175,500.0,0.00010645,2]
[400206688,1767195626259,147.98932542,0.00010645,2]
[400206689,1767195626342,352.01067458,0.00010645,2]
[400206690,1767195626431,500.0,0.00010645,2]
[400206691,1767195626516,500.0,0.00010645,2]
[400206692,1767195626623,500.0,0.00010645,2]
[400206693,1767195626714,500.0,0.00010645,2]
[400206694,1767195626803,500.0,0.00010645,2]
[400206695,1767195626900,500.0,0.00010645,2]
[400206696,1767195627059,500.0,0.00010645,2]
[400206697,1767195649802,500.0,0.00010645,2]
[400206698,1767195650769,500.0,0.00010645,2]
[400206699,1767195651132,500.0,0.00010645,2]
[400206700,1767195651439,300.0,0.00010645,2]
[400206701,1767195652925,500.0,0.00010645,2]
[400206702,1767195653015,500.0,0.00010645,2]
[400206703,1767195653107,500.0,0.00010645,2]
[400206704,1767195653201,500.0,0.00010645,2]
[400206705,1767195653311,500.0,0.00010645,2]
[400206706,1767195653404,500.0,0.00010645,2]
[400206707,1767195653500,500.0,0.00010645,2]
[400206708,1767195653601,500.0,0.00010645,2]
[400206709,1767195653700,347.99932542,0.00010645,2]
[400206710,1767195653787,152.00067458,0.00010645,2]
[400206711,1767195653873,500.0,0.00010645,2]
[400206712,1767195653963,500.0,0.00010645,2]
[400206713,1767195654058,500.0,0.00010645,2]
[400206714,1767195654149,500.0,0.00010645,2]
[400206715,1767195654242,500.0,0.00010645,2]
[400206716,1767195654338,500.0,0.00010645,2]
[400206717,1767195654434,500.0,0.00010645,2]
[400206718,1767195654524,500.0,0.00010645,2]
[400206719,1767195654609,500.0,0.00010645,2]
[400206720,1767195654699,500.0,0.00010645,2]
[400206721,1767195654790,500.0,0.00010645,2]
[400206722,1767195654890,500.0,0.00010645,2]
[400206723,1767195654981,500.0,0.00010645,2]
[400206724,1767195655071,500.0,0.00010645,2]
[400206725,1767195655165,500.0,0.00010645,2]
[400206726,1767195655264,500.0,0.00010645,2]
[400206727,1767195655360,500.0,0.00010645,2]
[400206728,1767195655451,500.0,0.00010645,2]
[400206729,1767195655544,500.0,0.00010645,2]
[400206730,1767195655641,348.00932542,0.00010645,2]
[400206731,1767195655735,151.99067458,0.00010645,2]
[400206732,1767195655852,500.0,0.00010645,2]
[400206733,1767195655947,500.0,0.00010645,2]
[400206734,1767195656047,500.0,0.00010645,2]
[400206735,1767195656144,500.0,0.00010645,2]
[400206736,1767195656242,500.0,0.00010645,2]
[400206737,1767195656575,500.0,0.00010645,2]
[400206738,1767195656662,189.01536566,0.00010645,2]
[400206739,1767195656752,500.0,0.00010645,2]
[400206740,1767195656843,500.0,0.00010645,2]
[400206741,1767195656928,500.0,0.00010645,2]
[400206742,1767195657022,500.0,0.00010645,2]
[400206743,1767195657108,500.0,0.00010645,2]
[400206744,1767195657203,500.0,0.00010645,2]
[400206745,1767195657300,500.0,0.00010645,2]
[400206749,1767195681973,500.0,0.00010645,2]
[400206750,1767195682056,500.0,0.00010645,2]
[400206751,1767195682146,500.0,0.00010645,2]
[400206752,1767195682229,500.0,0.00010645,2]
[400206753,1767195682314,500.0,0.00010645,2]
[400206754,1767195682403,500.0,0.00010645,2]
[400206755,1767195682487,159.00395976,0.00010645,2]
[400206756,1767195682568,340.99604024,0.00010645,2]
[400206757,1767195682659,500.0,0.00010645,2]
[400206758,1767195682743,500.0,0.00010645,2]
[400206759,1767195682831,500.0,0.00010645,2]
[400206760,1767195682924,500.0,0.00010645,2]
[400206761,1767195683002,500.0,0.00010645,2]
[400206762,1767195683082,500.0,0.00010645,2]
[400206763,1767195683162,500.0,0.00010645,2]
[400206764,1767195683352,300.0,0.00010645,2]
[400206765,1767195683439,500.0,0.00010645,2]
[400206766,1767195683523,500.0,0.00010645,2]
[400206767,1767195683627,500.0,0.00010645,2]
[400206768,1767195683719,500.0,0.00010645,2]
[400206769,1767195683809,500.0,0.00010645,2]
[400206770,1767195683900,500.0,0.00010645,2]
[400206771,1767195683990,500.0,0.00010645,2]
[400206774,1767195703615,352.166,0.00010433,2]
[400206778,1767195720221,259.60931661,0.00010645,2]
[400206781,1767195728170,1222.09682287,0.00010645,2]
[400206782,1767195728271,525.14182028,0.00010645,2]
[400206783,1767195728362,696.95500259,0.00010645,2]
[400206784,1767195728467,1222.09682287,0.00010645,2]
[400206785,1767195728576,1222.09682287,0.00010645,2]
[400206786,1767195728691,1222.09682287,0.00010645,2]
[400206787,1767195728791,1222.09682287,0.00010645,2]
[400206788,1767195728892,1222.09682287,0.00010645,2]
[400206789,1767195729010,1222.09682287,0.00010645,2]
[400206790,1767195729132,1222.09682287,0.00010645,2]
[400206791,1767195729228,748.37723732,0.00010645,2]
[400206792,1767195729315,473.71958555,0.00010645,2]
[400206793,1767195729425,1222.09682287,0.00010645,2]
[400206794,1767195729663,1222.09682287,0.00010645,2]
[400206795,1767195729790,1222.09682287,0.00010645,2]
[400206796,1767195729890,1222.09682287,0.00010645,2]
[400206797,1767195730562,1222.09682287,0.00010645,2]